[Event "African Games Rapid Open 2019"]
[Site "Casablanca"]
[Date "2019.08.26"]
[Round "3.12"]
[White "Beukes, Dante M"]
[Black "Silva, David"]
[Result "0-1"]
[ECO "C47"]
[WhiteElo "2130"]
[BlackElo "2239"]
[Annotator "NA"]
[PlyCount "116"]
[EventDate "2019.08.26"]
[EventType "team-tourn"]
[EventCountry "MAR"]
[SourceTitle "playchess.com"]
[Source "ChessBase"]
[SourceQuality "1"]
[TimeControl "900+10"]

1. e4 {[%emt 0:00:00]} e5 {[%emt 0:00:00]} 2. Nf3 {[%emt 0:00:03]} Nc6 {[%emt 0:00:00]} 3. Nc3 {[%emt 0:00:13]} Nf6 {[%emt 0:00:00]} 4. d4 {[%emt 0:00:12]} exd4 {[%emt 0:00:06]} 5. Nxd4 {[%emt 0:00:03]} Bb4 {[%emt 0:00:02]} 6. Nxc6 {[%emt 0:00:04]} bxc6 {[%emt 0:00:02]} 7. Bd3 {[%emt 0:00:02]} d5 {[%emt 0:00:02]} 8. exd5 {[%emt 0:00:02]} O-O {[%emt 0:00:02]} 9. O-O {[%emt 0:00:02]} cxd5 {[%emt 0:00:02]} 10. h3 {[%emt 0:00:02]} c6 {[%emt 0:00:11]} 11. Qf3 {[%emt 0:00:02]} Bd6 {[%emt 0:00:05]} 12. Bf4 {[%emt 0:00:02]} Rb8 {[%emt 0:00:06]} 13. b3 {[%emt 0:00:01]} Rb4 {[%emt 0:00:15]} 14. Bxd6 {[%emt 0:00:03]} Qxd6 {[%emt 0:00:02]} 15. Qg3 {[%emt 0:00:01]} Qd8 {[%emt 0:00:09]} 16. a3 {[%emt 0:00:28]} Rb6 {[%emt 0:00:16]} 17. Na4 {[%emt 0:00:11]} Rb7 {[%emt 0:00:02]} 18. Nc5 {[%emt 0:01:37]} Re7 {[%emt 0:00:02]} 19. Qh4 {[%emt 0:00:14]} h6 {[%emt 0:00:21]} 20. b4 {[%emt 0:00:36]} Rfe8 {[%emt 0:00:28]} 21. Rad1 {[%emt 0:00:22]} Re5 {[%emt 0:00:28]} 22. c4 {[%emt 0:01:53]} Bf5 {[%emt 0:03:22]} 23. Bxf5 {[%emt 0:01:15]} Rxf5 {[%emt 0:00:02]} 24. cxd5 {[%emt 0:00:02]} Rxd5 {[%emt 0:00:25]} 25. Rxd5 {[%emt 0:00:47]} Qxd5 {[%emt 0:00:04]} 26. Qg3 {[%emt 0:00:56]} a5 {[%emt 0:00:11]} 27. Qd3 {[%emt 0:00:27]} axb4 {[%emt 0:00:04]} 28. axb4 {[%emt 0:00:04]} Rb8 {[%emt 0:00:28]} 29. Qc3 {[%emt 0:00:25]} Nh5 {[%emt 0:00:17]} 30. Nd3 {[%emt 0:00:53]} Rd8 {[%emt 0:00:09]} 31. Ne5 {[%emt 0:00:07]} Nf4 {[%emt 0:00:15]} 32. Qxc6 {[%emt 0:01:10]} Qxe5 {[%emt 0:00:03]} 33. b5 {[%emt 0:00:38]} Ne2+ {[%emt 0:00:02]} 34. Kh1 {[%emt 0:00:03]} Nd4 {[%emt 0:00:02]} 35. Qc3 {[%emt 0:00:29]} Qxb5 {[%emt 0:00:06]} 36. Rd1 {[%emt 0:00:03]} Ne6 {[%emt 0:00:08]} 37. Rxd8+ {[%emt 0:00:04]} Nxd8 {[%emt 0:00:02]} 38. Qc8 {[%emt 0:00:13]} Qd3 {[%emt 0:00:01]} 39. Qb8 {[%emt 0:00:14]} Kh7 {[%emt 0:00:04]} 40. Qa7 {[%emt 0:00:08]} Qd1+ {[%emt 0:00:06]} 41. Kh2 {[%emt 0:00:02]} Qd6+ {[%emt 0:00:02]} 42. Kg1 {[%emt 0:00:08]} Qf6 {[%emt 0:00:02]} 43. Qd7 {[%emt 0:00:26]} Ne6 {[%emt 0:00:02]} 44. Qd3+ {[%emt 0:00:01]} Qg6 {[%emt 0:00:04]} 45. Qc4 {[%emt 0:00:07]} Qb1+ {[%emt 0:00:23]} 46. Kh2 {[%emt 0:00:02]} Qb8+ {[%emt 0:00:02]} 47. Kg1 {[%emt 0:00:02]} Qf4 {[%emt 0:00:01]} 48. Qd3+ {[%emt 0:00:04]} g6 {[%emt 0:00:02]} 49. Qd7 {[%emt 0:00:10]} Kg7 {[%emt 0:00:02]} 50. Qa7 {[%emt 0:00:05]} Nd4 {[%emt 0:00:08]} 51. Qe7 {[%emt 0:00:21]} h5 {[%emt 0:00:14]} 52. Qe8 {[%emt 0:00:08]} Ne6 {[%emt 0:00:18]} 53. Qc8 {[%emt 0:00:14]} Qd2 {[%emt 0:00:17]} 54. Qa6 {[%emt 0:01:02]} Qe1+ {[%emt 0:00:03]} 55. Qf1 {[%emt 0:00:03]} Qxf1+ {[%emt 0:00:04]} 56. Kxf1 {[%emt 0:00:01]} Kf6 {[%emt 0:00:02]} 57. Kg1 {[%emt 0:00:05]} Ke5 {[%emt 0:00:03]} 58. Kf1 {[%emt 0:00:01]} Ke4 {[%emt 0:00:04]} 0-1

[Event "African Games Rapid Open 2019"]
[Site "Casablanca"]
[Date "2019.08.26"]
[Round "3.14"]
[White "Ebosse, Kingue Victor Patric"]
[Black "Mesfin, Leykun"]
[Result "0-1"]
[ECO "B99"]
[WhiteElo "2055"]
[BlackElo "2151"]
[Annotator "NA"]
[PlyCount "108"]
[EventDate "2019.08.26"]
[EventType "team-tourn"]
[EventCountry "MAR"]
[SourceTitle "playchess.com"]
[Source "ChessBase"]
[SourceQuality "1"]
[TimeControl "900+10"]

1. e4 {[%emt 0:00:00]} c5 {[%emt 0:00:00]} 2. Nf3 d6 3. d4 {[%emt 0:00:02]} cxd4 {[%emt 0:00:01]} 4. Nxd4 {[%emt 0:00:01]} Nf6 {[%emt 0:00:01]} 5. Nc3 a6 6. Bg5 {[%emt 0:00:02]} e6 {[%emt 0:00:12]} 7. f4 {[%emt 0:00:05]} Be7 {[%emt 0:00:05]} 8. Qf3 {[%emt 0:00:05]} Nbd7 {[%emt 0:00:07]} 9. O-O-O {[%emt 0:00:05]} Qc7 {[%emt 0:00:02]} 10. Kb1 {[%emt 0:00:06]} b5 {[%emt 0:00:01]} 11. Bd3 {[%emt 0:00:30]} b4 {[%emt 0:00:10]} 12. Na4 {[%emt 0:02:14]} Bb7 {[%emt 0:00:09]} 13. Rhe1 {[%emt 0:00:13]} Rc8 {[%emt 0:00:34]} 14. g4 {[%emt 0:00:30]} Nc5 {[%emt 0:00:04]} 15. Nxc5 {[%emt 0:00:03]} dxc5 {[%emt 0:00:04]} 16. Nb5 {[%emt 0:00:58]} axb5 {[%emt 0:00:17]} 17. Bxb5+ {[%emt 0:00:01]} Bc6 {[%emt 0:00:05]} 18. e5 {[%emt 0:00:46]} Bxb5 {[%emt 0:00:14]} 19. exf6 {[%emt 0:00:02]} gxf6 {[%emt 0:00:01]} 20. Bh4 {[%emt 0:00:26]} Qa7 {[%emt 0:00:36]} 21. f5 {[%emt 0:00:57]} Ra8 {[%emt 0:00:16]} 22. a3 {[%emt 0:00:16]} bxa3 {[%emt 0:00:02]} 23. b3 {[%emt 0:00:01]} a2+ {[%emt 0:05:01]} 24. Ka1 {[%emt 0:00:31]} Bd7 {[%emt 0:00:17]} 25. fxe6 {[%emt 0:00:16]} Bxe6 {[%emt 0:00:07]} 26. Bxf6 {[%emt 0:00:24]} Qb7 {[%emt 0:02:27]} 27. Qc3 {[%emt 0:01:09]} Rg8 {[%emt 0:01:26]} 28. g5 {[%emt 0:01:00]} Bxf6 {[%emt 0:01:57]} 29. Qxf6 {[%emt 0:00:22]} Qe7 {[%emt 0:00:10]} 30. Qf3 {[%emt 0:00:20]} Rd8 {[%emt 0:00:22]} 31. Rxd8+ {[%emt 0:03:15]} Qxd8 {[%emt 0:00:21]} 32. Qc6+ {[%emt 0:00:23]} Kf8 {[%emt 0:01:24]} 33. Qxc5+ {[%emt 0:00:24]} Qe7 {[%emt 0:00:32]} 34. Re5 {[%emt 0:00:55]} Qxc5 {[%emt 0:00:15]} 35. Rxc5 {[%emt 0:00:01]} Ke7 {[%emt 0:00:02]} 36. Kxa2 {[%emt 0:00:03]} Rd8 {[%emt 0:00:04]} 37. Ka3 {[%emt 0:00:47]} Rd2 {[%emt 0:00:07]} 38. b4 {[%emt 0:00:09]} Rxh2 {[%emt 0:00:06]} 39. b5 {[%emt 0:00:07]} Kd6 {[%emt 0:00:14]} 40. Kb4 {[%emt 0:00:12]} Rh1 {[%emt 0:00:33]} 41. Rc6+ {[%emt 0:00:33]} Kd7 {[%emt 0:00:02]} 42. Kc5 {[%emt 0:00:17]} Rg1 {[%emt 0:00:15]} 43. c4 {[%emt 0:00:15]} Rxg5+ {[%emt 0:00:04]} 44. Kb6 {[%emt 0:00:01]} h5 {[%emt 0:00:30]} 45. c5 {[%emt 0:00:03]} h4 {[%emt 0:00:10]} 46. Rd6+ {[%emt 0:00:01]} Ke7 {[%emt 0:00:12]} 47. Rd4 {[%emt 0:00:45]} Rh5 {[%emt 0:00:07]} 48. c6 {[%emt 0:00:19]} h3 {[%emt 0:00:08]} 49. Rd2 {[%emt 0:02:25]} h2 {[%emt 0:00:11]} 50. Rxh2 {[%emt 0:00:01]} Rxh2 {[%emt 0:00:06]} 51. Kc7 {[%emt 0:00:01]} Rb2 {[%emt 0:00:33]} 52. b6 {[%emt 0:00:03]} Rxb6 {[%emt 0:00:29]} 53. Kxb6 {[%emt 0:00:01]} Kd6 {[%emt 0:00:01]} 54. Kb5 {[%emt 0:00:51]} Ke5 {[%emt 0:00:04]} 0-1

[Event "African Games Rapid Open 2019"]
[Site "Casablanca"]
[Date "2019.08.26"]
[Round "3.15"]
[White "Espirito Santo, Waldyr"]
[Black "Gohil, Mehul"]
[Result "0-1"]
[ECO "C12"]
[WhiteElo "1923"]
[BlackElo "2076"]
[Annotator "NA"]
[PlyCount "138"]
[EventDate "2019.08.26"]
[EventType "team-tourn"]
[EventCountry "MAR"]
[SourceTitle "playchess.com"]
[Source "ChessBase"]
[SourceQuality "1"]
[TimeControl "900+10"]

1. e4 {[%emt 0:00:00]} e6 {[%emt 0:00:00]} 2. d4 {[%emt 0:00:00]} d5 {[%emt 0:00:00]} 3. Nc3 {[%emt 0:00:00]} Nf6 {[%emt 0:00:05]} 4. Bg5 {[%emt 0:00:08]} Bb4 {[%emt 0:00:06]} 5. e5 {[%emt 0:00:07]} h6 {[%emt 0:00:04]} 6. Bd2 {[%emt 0:00:06]} Bxc3 {[%emt 0:00:08]} 7. bxc3 {[%emt 0:00:05]} Ne4 {[%emt 0:00:07]} 8. Qg4 {[%emt 0:00:28]} Kf8 {[%emt 0:00:22]} 9. Bd3 {[%emt 0:00:04]} Nxd2 {[%emt 0:00:13]} 10. Kxd2 {[%emt 0:00:03]} c5 {[%emt 0:01:08]} 11. Nf3 {[%emt 0:01:12]} Nc6 {[%emt 0:00:21]} 12. h4 {[%emt 0:00:32]} c4 {[%emt 0:01:23]} 13. Be2 {[%emt 0:00:28]} b5 {[%emt 0:00:36]} 14. a3 {[%emt 0:00:39]} a5 {[%emt 0:00:12]} 15. Rh3 {[%emt 0:00:22]} h5 {[%emt 0:06:22]} 16. Qf4 {[%emt 0:00:33]} Ne7 {[%emt 0:00:18]} 17. Rg3 {[%emt 0:02:02]} Nf5 {[%emt 0:00:19]} 18. Rh3 {[%emt 0:04:26]} Qe7 {[%emt 0:00:21]} 19. Ng5 {[%emt 0:01:46]} Ke8 {[%emt 0:01:12]} 20. g4 {[%emt 0:00:35]} hxg4 {[%emt 0:00:04]} 21. Bxg4 {[%emt 0:00:07]} Rxh4 {[%emt 0:01:57]} 22. Rxh4 {[%emt 0:00:53]} Nxh4 {[%emt 0:00:02]} 23. Bh5 {[%emt 0:00:30]} Ng6 {[%emt 0:00:15]} 24. Bxg6 {[%emt 0:00:09]} fxg6 {[%emt 0:00:00]} 25. Rh1 {[%emt 0:00:09]} Kd7 {[%emt 0:00:28]} 26. Nf7 {[%emt 0:00:52]} Ba6 {[%emt 0:00:34]} 27. Rh7 {[%emt 0:00:34]} Rg8 {[%emt 0:00:20]} 28. Nd6 {[%emt 0:01:09]} Rf8 {[%emt 0:00:39]} 29. Qg3 {[%emt 0:00:12]} g5 {[%emt 0:00:04]} 30. Ke1 {[%emt 0:00:30]} Kc6 {[%emt 0:00:03]} 31. Qh2 {[%emt 0:00:20]} g4 {[%emt 0:00:10]} 32. Qh5 {[%emt 0:00:11]} Rd8 {[%emt 0:00:38]} 33. Qg6 {[%emt 0:00:18]} Rd7 {[%emt 0:00:01]} 34. Rh8 {[%emt 0:00:10]} Rd8 {[%emt 0:00:51]} 35. Rxd8 {[%emt 0:00:41]} Qxd8 {[%emt 0:00:01]} 36. Qxg7 {[%emt 0:00:08]} Qd7 {[%emt 0:00:23]} 37. Qf8 {[%emt 0:00:09]} Bb7 {[%emt 0:00:21]} 38. Qb8 {[%emt 0:00:18]} Ba6 {[%emt 0:00:28]} 39. Qa8+ {[%emt 0:00:08]} Kb6 {[%emt 0:00:01]} 40. Qb8+ {[%emt 0:00:10]} Kc6 {[%emt 0:00:02]} 41. Kd2 {[%emt 0:00:11]} Qe7 {[%emt 0:00:28]} 42. Qe8+ {[%emt 0:00:16]} Qxe8 {[%emt 0:00:01]} 43. Nxe8 {[%emt 0:00:01]} Kd7 {[%emt 0:00:13]} 44. Nf6+ {[%emt 0:00:03]} Ke7 {[%emt 0:00:01]} 45. Nxg4 {[%emt 0:00:02]} Kf7 {[%emt 0:00:00]} 46. Nf6 {[%emt 0:00:13]} Kg6 {[%emt 0:00:02]} 47. Nd7 {[%emt 0:00:11]} Kf5 {[%emt 0:00:09]} 48. Ke3 {[%emt 0:00:19]} Bb7 {[%emt 0:00:05]} 49. f3 {[%emt 0:00:09]} Bc6 {[%emt 0:00:01]} 50. Nb6 {[%emt 0:00:14]} Be8 {[%emt 0:00:11]} 51. Nc8 {[%emt 0:00:07]} Kg5 {[%emt 0:00:18]} 52. Nd6 {[%emt 0:00:03]} Bd7 {[%emt 0:00:15]} 53. Nf7+ {[%emt 0:00:16]} Kf5 {[%emt 0:00:07]} 54. f4 {[%emt 0:00:16]} Kg4 {[%emt 0:00:04]} 55. Nd6 {[%emt 0:00:06]} Kg3 {[%emt 0:00:07]} 56. Nb7 {[%emt 0:00:09]} Kg4 {[%emt 0:00:12]} 57. Nc5 {[%emt 0:00:13]} Bc8 {[%emt 0:00:01]} 58. a4 {[%emt 0:00:15]} b4 {[%emt 0:00:01]} 59. cxb4 {[%emt 0:00:05]} axb4 {[%emt 0:00:00]} 60. a5 {[%emt 0:00:02]} Kg3 {[%emt 0:01:11]} 61. a6 {[%emt 0:00:25]} b3 {[%emt 0:00:01]} 62. cxb3 {[%emt 0:00:07]} cxb3 {[%emt 0:00:02]} 63. a7 {[%emt 0:00:11]} b2 {[%emt 0:00:11]} 64. a8=Q {[%emt 0:00:13]} b1=Q {[%emt 0:00:00]} 65. Qxc8 {[%emt 0:00:00]} Qc1+ {[%emt 0:00:24]} 66. Kd3 {[%emt 0:00:11]} Qc4+ {[%emt 0:00:07]} 67. Ke3 {[%emt 0:00:11]} Qc1+ {[%emt 0:00:06]} 68. Ke2 {[%emt 0:00:08]} Qc2+ {[%emt 0:00:04]} 69. Ke1 {[%emt 0:00:15]} Kf3 {[%emt 0:00:42]} 0-1

[Event "African Games Rapid Open 2019"]
[Site "Casablanca"]
[Date "2019.08.26"]
[Round "3.16"]
[White "Asante Debesai Zerabruk"]
[Black "Mphungu, Gerrard"]
[Result "0-1"]
[ECO "B92"]
[WhiteElo "1712"]
[BlackElo "2107"]
[Annotator "NA"]
[PlyCount "116"]
[EventDate "2019.08.26"]
[EventType "team-tourn"]
[EventCountry "MAR"]
[SourceTitle "playchess.com"]
[Source "ChessBase"]
[SourceQuality "1"]
[TimeControl "900+10"]

1. e4 {[%emt 0:00:00]} c5 {[%emt 0:00:00]} 2. Nf3 {[%emt 0:00:00]} d6 {[%emt 0:00:00]} 3. d4 {[%emt 0:00:00]} cxd4 {[%emt 0:00:00]} 4. Nxd4 {[%emt 0:00:00]} Nf6 {[%emt 0:00:00]} 5. Nc3 a6 6. Be2 {[%emt 0:00:01]} e5 {[%emt 0:00:00]} 7. Nb3 {[%emt 0:00:02]} Be6 {[%emt 0:00:00]} 8. Be3 {[%emt 0:00:57]} Nbd7 {[%emt 0:00:30]} 9. Qd2 {[%emt 0:00:25]} Be7 {[%emt 0:00:30]} 10. f3 {[%emt 0:00:23]} Qc7 {[%emt 0:01:31]} 11. O-O-O {[%emt 0:01:55]} b5 {[%emt 0:00:26]} 12. g4 {[%emt 0:00:12]} Nb6 {[%emt 0:01:25]} 13. Bxb6 {[%emt 0:00:55]} Qxb6 {[%emt 0:00:04]} 14. Nd5 {[%emt 0:00:01]} Bxd5 {[%emt 0:00:08]} 15. exd5 {[%emt 0:00:01]} a5 {[%emt 0:01:26]} 16. Qd3 {[%emt 0:00:47]} Rb8 {[%emt 0:01:28]} 17. Qc3 {[%emt 0:01:40]} a4 {[%emt 0:00:40]} 18. Na5 {[%emt 0:00:08]} O-O {[%emt 0:00:57]} 19. Nc6 {[%emt 0:00:29]} Rb7 {[%emt 0:00:10]} 20. h4 {[%emt 0:00:22]} Re8 {[%emt 0:03:57]} 21. g5 {[%emt 0:02:08]} Nd7 {[%emt 0:00:10]} 22. Nxe7+ {[%emt 0:00:55]} Rxe7 {[%emt 0:00:02]} 23. Qc6 {[%emt 0:00:01]} Nf8 {[%emt 0:01:04]} 24. Qc3 {[%emt 0:02:14]} Rec7 {[%emt 0:00:17]} 25. Qd3 {[%emt 0:00:17]} Ng6 {[%emt 0:00:02]} 26. h5 {[%emt 0:00:31]} Nf4 {[%emt 0:00:06]} 27. Qe4 {[%emt 0:00:01]} Rb8 {[%emt 0:01:40]} 28. g6 {[%emt 0:01:16]} f5 {[%emt 0:00:15]} 29. gxh7+ {[%emt 0:00:05]} Kh8 {[%emt 0:00:01]} 30. Qxf5 {[%emt 0:01:06]} Nxe2+ {[%emt 0:00:57]} 31. Kb1 {[%emt 0:00:01]} Qb7 {[%emt 0:00:55]} 32. h6 {[%emt 0:01:30]} Rf7 {[%emt 0:00:16]} 33. hxg7+ {[%emt 0:00:21]} Rxg7 {[%emt 0:00:01]} 34. Qf6 {[%emt 0:00:49]} Qe7 {[%emt 0:00:02]} 35. Qe6 {[%emt 0:00:30]} Re8 {[%emt 0:00:46]} 36. Rh2 {[%emt 0:00:06]} Nf4 {[%emt 0:00:13]} 37. Qxe7 {[%emt 0:00:06]} Rexe7 {[%emt 0:00:02]} 38. Rh6 {[%emt 0:00:04]} Rg6 {[%emt 0:00:17]} 39. Rxg6 {[%emt 0:00:30]} Nxg6 {[%emt 0:00:02]} 40. Rg1 {[%emt 0:00:04]} Rg7 {[%emt 0:00:01]} 41. b3 {[%emt 0:00:05]} a3 {[%emt 0:00:33]} 42. c3 {[%emt 0:00:26]} Nf4 {[%emt 0:00:02]} 43. Re1 {[%emt 0:00:13]} Rxh7 {[%emt 0:00:14]} 44. c4 {[%emt 0:00:26]} bxc4 {[%emt 0:00:03]} 45. bxc4 {[%emt 0:00:02]} Rh2 {[%emt 0:00:05]} 46. Re3 {[%emt 0:00:06]} Rb2+ 47. Ka1 Rc2 {[%emt 0:00:29]} 48. Rxa3 {[%emt 0:00:05]} Rxc4 {[%emt 0:00:19]} 49. Ra6 {[%emt 0:00:01]} Rd4 {[%emt 0:00:03]} 50. Rxd6 {[%emt 0:00:02]} Rxd5 {[%emt 0:00:02]} 51. Rxd5 {[%emt 0:00:03]} Nxd5 {[%emt 0:00:01]} 52. Kb2 {[%emt 0:00:02]} Kg7 {[%emt 0:00:00]} 53. Kb3 {[%emt 0:00:03]} Kf6 {[%emt 0:00:02]} 54. Kc4 {[%emt 0:00:01]} Ke6 {[%emt 0:00:00]} 55. a4 {[%emt 0:00:08]} Nb6+ {[%emt 0:00:08]} 56. Kb5 {[%emt 0:00:17]} Nxa4 {[%emt 0:00:01]} 57. Kxa4 {[%emt 0:00:01]} Kf5 {[%emt 0:00:00]} 58. Kb3 {[%emt 0:00:02]} Kf4 {[%emt 0:00:02]} 0-1

[Event "African Games Rapid Open 2019"]
[Site "Casablanca"]
[Date "2019.08.26"]
[Round "3.17"]
[White "Kourakoumba, Florent"]
[Black "Mwale, Joseph"]
[Result "0-1"]
[ECO "C24"]
[WhiteElo "1677"]
[BlackElo "2231"]
[Annotator "NA"]
[PlyCount "60"]
[EventDate "2019.08.26"]
[EventType "team-tourn"]
[EventCountry "MAR"]
[SourceTitle "playchess.com"]
[Source "ChessBase"]
[SourceQuality "1"]
[TimeControl "900+10"]

1. e4 {[%emt 0:00:00]} e5 {[%emt 0:00:00]} 2. Bc4 {[%emt 0:00:00]} Nf6 {[%emt 0:00:00]} 3. d3 {[%emt 0:00:05]} Nc6 {[%emt 0:00:00]} 4. c3 {[%emt 0:00:20]} Bc5 {[%emt 0:00:58]} 5. h3 {[%emt 0:00:20]} d5 {[%emt 0:00:25]} 6. exd5 {[%emt 0:00:13]} Nxd5 {[%emt 0:00:02]} 7. Nf3 {[%emt 0:00:05]} O-O {[%emt 0:00:02]} 8. O-O {[%emt 0:00:01]} Be6 {[%emt 0:00:05]} 9. b4 {[%emt 0:00:05]} Bb6 {[%emt 0:00:30]} 10. a4 a6 {[%emt 0:00:04]} 11. Na3 {[%emt 0:00:31]} Nxc3 {[%emt 0:00:07]} 12. Qc2 {[%emt 0:00:36]} Nd5 {[%emt 0:00:03]} 13. b5 {[%emt 0:00:07]} axb5 {[%emt 0:00:03]} 14. axb5 {[%emt 0:00:03]} Nd4 {[%emt 0:00:28]} 15. Qd2 {[%emt 0:00:21]} Nxf3+ {[%emt 0:00:04]} 16. gxf3 {[%emt 0:00:24]} Bxh3 {[%emt 0:00:03]} 17. Re1 {[%emt 0:00:09]} Ba5 {[%emt 0:00:20]} 18. Qe2 {[%emt 0:01:28]} Bxe1 {[%emt 0:00:02]} 19. Qxe1 {[%emt 0:00:07]} Qf6 {[%emt 0:00:02]} 20. Kh2 {[%emt 0:00:43]} Qxf3 {[%emt 0:00:09]} 21. Qg1 {[%emt 0:00:14]} Be6 {[%emt 0:00:12]} 22. Qg3 {[%emt 0:00:18]} Qh5+ {[%emt 0:00:03]} 23. Kg2 {[%emt 0:00:15]} Rad8 {[%emt 0:00:29]} 24. Nc2 {[%emt 0:00:09]} Nf4+ {[%emt 0:00:07]} 25. Bxf4 {[%emt 0:00:09]} exf4 {[%emt 0:00:09]} 26. Qxf4 {[%emt 0:00:15]} Bh3+ {[%emt 0:00:21]} 27. Kg1 {[%emt 0:00:12]} Rd6 {[%emt 0:00:08]} 28. Qh2 {[%emt 0:01:08]} Rg6+ {[%emt 0:00:04]} 29. Kh1 {[%emt 0:00:07]} Qf3+ {[%emt 0:00:02]} 30. Qg2 Qxg2# 0-1

[Event "African Games Rapid Open 2019"]
[Site "Casablanca"]
[Date "2019.08.26"]
[Round "3.19"]
[White "Yahi, Mohamed Salem"]
[Black "Eichab, Charles"]
[Result "0-1"]
[ECO "A96"]
[WhiteElo "1928"]
[BlackElo "2016"]
[Annotator "NA"]
[PlyCount "184"]
[EventDate "2019.08.26"]
[EventType "team-tourn"]
[EventCountry "MAR"]
[SourceTitle "playchess.com"]
[Source "ChessBase"]
[SourceQuality "1"]
[TimeControl "900+10"]

1. d4 {[%emt 0:00:00]} f5 {[%emt 0:00:00]} 2. c4 {[%emt 0:00:04]} Nf6 {[%emt 0:00:00]} 3. g3 e6 4. Bg2 {[%emt 0:00:32]} Be7 {[%emt 0:00:26]} 5. Nf3 {[%emt 0:00:12]} O-O {[%emt 0:00:15]} 6. O-O {[%emt 0:00:07]} d6 {[%emt 0:00:36]} 7. Nc3 {[%emt 0:00:06]} a5 {[%emt 0:01:18]} 8. b3 {[%emt 0:00:12]} Na6 {[%emt 0:01:55]} 9. Bb2 {[%emt 0:00:12]} Qe8 {[%emt 0:00:24]} 10. Re1 {[%emt 0:00:22]} Ne4 {[%emt 0:00:02]} 11. Nxe4 {[%emt 0:00:42]} fxe4 {[%emt 0:00:02]} 12. Nd2 {[%emt 0:00:04]} d5 {[%emt 0:00:05]} 13. f3 {[%emt 0:00:43]} exf3 {[%emt 0:04:18]} 14. exf3 {[%emt 0:00:04]} Nb4 {[%emt 0:00:21]} 15. Re2 {[%emt 0:02:17]} Qg6 {[%emt 0:01:23]} 16. a3 {[%emt 0:00:27]} Nc6 {[%emt 0:01:53]} 17. cxd5 {[%emt 0:01:22]} exd5 {[%emt 0:00:20]} 18. Rc1 {[%emt 0:00:12]} Bf6 {[%emt 0:00:04]} 19. Nf1 {[%emt 0:00:43]} Bd7 {[%emt 0:00:17]} 20. Ne3 {[%emt 0:00:25]} Be6 {[%emt 0:01:18]} 21. f4 {[%emt 0:00:39]} Rad8 {[%emt 0:00:27]} 22. f5 {[%emt 0:00:06]} Bxf5 {[%emt 0:00:12]} 23. Nxd5 {[%emt 0:00:40]} Bg4 {[%emt 0:00:36]} 24. Nxf6+ {[%emt 0:01:21]} gxf6 {[%emt 0:01:22]} 25. d5 {[%emt 0:00:34]} Rfe8 {[%emt 0:00:16]} 26. Rxe8+ {[%emt 0:00:13]} Rxe8 {[%emt 0:00:01]} 27. Qf1 {[%emt 0:00:15]} Ne5 {[%emt 0:00:09]} 28. Re1 {[%emt 0:00:42]} Rf8 {[%emt 0:00:33]} 29. Be4 {[%emt 0:00:26]} Qh6 {[%emt 0:00:31]} 30. Bc1 {[%emt 0:00:19]} Qh5 {[%emt 0:00:19]} 31. Qf4 {[%emt 0:00:20]} Bf3 {[%emt 0:00:20]} 32. Bf5 {[%emt 0:00:30]} Bxd5 {[%emt 0:00:18]} 33. Rf1 {[%emt 0:01:18]} Nf3+ {[%emt 0:00:14]} 34. Rxf3 {[%emt 0:00:08]} Qxf3 {[%emt 0:00:07]} 35. Qxf3 {[%emt 0:00:05]} Bxf3 {[%emt 0:00:01]} 36. Bb2 {[%emt 0:00:13]} Kg7 {[%emt 0:00:04]} 37. Kf2 {[%emt 0:00:03]} Bd5 {[%emt 0:00:02]} 38. b4 {[%emt 0:00:12]} axb4 {[%emt 0:00:01]} 39. axb4 {[%emt 0:00:00]} Ra8 {[%emt 0:00:02]} 40. Bb1 {[%emt 0:00:33]} Ra4 {[%emt 0:00:13]} 41. Bc3 {[%emt 0:00:09]} Ra3 {[%emt 0:00:06]} 42. Bd2 {[%emt 0:00:05]} Rb3 {[%emt 0:00:09]} 43. Bf5 {[%emt 0:00:14]} Rb2 {[%emt 0:00:15]} 44. Ke3 {[%emt 0:00:02]} b6 {[%emt 0:00:17]} 45. g4 {[%emt 0:00:02]} c5 {[%emt 0:00:06]} 46. bxc5 {[%emt 0:00:03]} bxc5 {[%emt 0:00:01]} 47. g5 {[%emt 0:00:01]} Rb3+ {[%emt 0:00:04]} 48. Kf4 {[%emt 0:00:10]} Rf3+ {[%emt 0:00:28]} 49. Kg4 {[%emt 0:00:04]} fxg5 {[%emt 0:00:36]} 50. Kxg5 {[%emt 0:00:04]} h6+ {[%emt 0:00:13]} 51. Kg4 {[%emt 0:00:01]} Kf6 {[%emt 0:00:04]} 52. Bd7 {[%emt 0:00:10]} Rf2 {[%emt 0:00:24]} 53. Bxh6 {[%emt 0:00:05]} Rxh2 {[%emt 0:00:11]} 54. Bg5+ {[%emt 0:00:06]} Kf7 {[%emt 0:00:02]} 55. Bf4 {[%emt 0:00:09]} Re2 {[%emt 0:00:08]} 56. Kg5 c4 {[%emt 0:00:04]} 57. Bg4 {[%emt 0:00:06]} Ra2 {[%emt 0:00:08]} 58. Bh5+ {[%emt 0:00:02]} Ke7 {[%emt 0:00:02]} 59. Be5 {[%emt 0:00:11]} Ke6 {[%emt 0:00:07]} 60. Bd4 {[%emt 0:00:05]} Rd2 {[%emt 0:00:10]} 61. Bg4+ {[%emt 0:00:05]} Kd6 {[%emt 0:00:05]} 62. Bg7 {[%emt 0:00:06]} Kc5 {[%emt 0:00:12]} 63. Bf8+ {[%emt 0:00:02]} Kb5 {[%emt 0:00:05]} 64. Bg7 {[%emt 0:00:09]} Kb4 {[%emt 0:00:03]} 65. Kf4 {[%emt 0:00:09]} c3 {[%emt 0:00:21]} 66. Ke3 {[%emt 0:00:08]} Rg2 {[%emt 0:00:05]} 67. Bf8+ {[%emt 0:00:01]} Kb3 {[%emt 0:00:03]} 68. Bd1+ {[%emt 0:00:21]} Kb2 {[%emt 0:00:31]} 69. Bc5 {[%emt 0:00:10]} Bb3 {[%emt 0:00:04]} 70. Bf3 {[%emt 0:00:39]} Rg3 {[%emt 0:00:18]} 71. Kf2 {[%emt 0:00:11]} Rh3 {[%emt 0:00:15]} 72. Bd4 {[%emt 0:00:03]} Rh4 {[%emt 0:00:19]} 73. Be5 {[%emt 0:00:05]} Rc4 {[%emt 0:00:10]} 74. Ke2 {[%emt 0:00:17]} Bc2 {[%emt 0:00:16]} 75. Ke3 {[%emt 0:00:15]} Bh7 {[%emt 0:00:10]} 76. Bg7 {[%emt 0:00:21]} Kb1 {[%emt 0:00:10]} 77. Bd5 {[%emt 0:00:45]} Rc7 {[%emt 0:00:08]} 78. Bxc3 {[%emt 0:00:13]} Rxc3+ {[%emt 0:00:01]} 79. Kf4 {[%emt 0:00:03]} Kc2 {[%emt 0:00:07]} 80. Bb7 {[%emt 0:00:08]} Kd3 {[%emt 0:00:07]} 81. Ba6+ {[%emt 0:00:09]} Kd4 {[%emt 0:00:02]} 82. Bb7 {[%emt 0:00:04]} Re3 {[%emt 0:00:03]} 83. Bc6 {[%emt 0:00:06]} Be4 {[%emt 0:00:02]} 84. Bb5 {[%emt 0:00:03]} Rf3+ {[%emt 0:00:03]} 85. Kg4 {[%emt 0:00:01]} Ke5 {[%emt 0:00:07]} 86. Be8 {[%emt 0:00:03]} Rf8 {[%emt 0:00:05]} 87. Bb5 {[%emt 0:00:02]} Rg8+ {[%emt 0:00:02]} 88. Kh3 {[%emt 0:00:06]} Kf4 {[%emt 0:00:04]} 89. Kh2 {[%emt 0:00:06]} Rg2+ {[%emt 0:00:07]} 90. Kh3 {[%emt 0:00:05]} Rb2 {[%emt 0:00:12]} 91. Bc6 {[%emt 0:00:03]} Rb6 {[%emt 0:00:16]} 92. Bd7 {[%emt 0:00:07]} Rh6# 0-1